bitfinex/quotes_ETHUSD_20251017
["timestamp","ask_amount","ask_price","bid_price","bid_amount"]
[1760711972766,2.67811457,3734.0,3733.0,2.6787966]
[1760711972951,2.67802147,3734.1,3732.8,0.6822]
[1760711973153,2.67802185,3734.1,3732.8,0.6822]
[1760711973390,0.04668137,3733.9,3732.8,0.231]
[1760711973791,0.04668137,3733.9,3732.9,0.4512]
[1760711974090,1.728,3733.8,3732.5,0.231]
[1760711974392,0.44528472,3733.7,3732.3,0.4512]
[1760711974561,2.67847186,3733.5,3732.5,2.6791052]
[1760711974761,0.04668517,3733.5,3732.4,2.67920967]
[1760711975087,0.04668517,3733.5,3732.9,2.67888178]
[1760711975265,1.728,3733.8,3732.5,0.4512]
[1760711975599,2.67816987,3733.9,3732.8,2.67893982]
[1760711975896,0.76420441,3733.8,3732.9,2.67886905]
[1760711976199,0.76420441,3733.8,3732.5,3.13030009]
[1760711976371,0.42016885,3733.9,3732.5,0.4512]
[1760711976769,2.67841188,3733.6,3732.5,0.4512]
[1760711976988,0.41936885,3733.9,3732.5,0.4512]
[1760711977205,0.41936885,3733.9,3732.6,2.67909767]
[1760711977358,0.41936885,3733.9,3732.9,2.67888121]
[1760711977564,0.41936885,3733.9,3733.0,2.67876757]
[1760711977897,0.41936885,3733.9,3732.8,2.67895413]
[1760711977898,2.62990115,3733.9,3733.1,0.231]
[1760711978079,1.728,3734.4,3733.5,2.67843065]
[1760711978287,0.42013352,3734.6,3733.3,2.67855125]
[1760711978605,0.42013352,3734.6,3733.5,2.67844618]
[1760711978805,0.42013352,3734.6,3733.4,2.67849979]
[1760711978982,0.04668114,3734.3,3733.3,2.6785826]
[1760711979289,0.04668114,3734.3,3733.1,2.90966806]
[1760711979290,2.67794976,3734.2,3733.1,0.231]
[1760711979475,1.728,3733.9,3732.7,0.4512]
[1760711979679,2.67816819,3733.9,3733.0,2.67875035]
[1760711979879,0.42012643,3734.2,3733.1,0.231]
[1760711980064,2.14812643,3734.2,3733.1,0.231]
[1760711980265,0.0466844,3733.8,3733.1,0.231]
[1760711980662,2.67830838,3733.7,3732.8,0.4512]
[1760711980862,0.0466844,3733.8,3732.5,0.001]
[1760711980863,0.1456844,3733.8,3732.5,0.001]
[1760711981193,0.1456844,3733.8,3732.6,3.13023741]
[1760711981194,1.728,3733.5,3732.6,3.13023741]
[1760711981395,2.72492266,3733.8,3732.5,0.001]
[1760711981396,0.0466844,3733.8,3732.5,0.001]
[1760711981598,1.728,3733.5,3732.5,0.001]
[1760711981797,2.67874064,3733.1,3732.5,0.001]
[1760711982307,2.67865356,3733.3,3732.5,0.001]
[1760711982513,1.728,3733.3,3732.5,0.001]
[1760711982818,0.1336,3733.2,3732.6,0.1336]
[1760711983112,2.72515108,3733.5,3732.5,0.001]
[1760711983113,0.04669181,3733.5,3733.1,2.90971303]
[1760711983275,0.002,3734.3,3733.4,2.67852359]
[1760711983462,2.67807398,3734.1,3733.2,3.12984856]
[1760711983661,2.67807398,3734.1,3732.5,0.001]
[1760711983662,0.6336,3733.8,3732.5,0.001]
[1760711983877,1.728,3733.1,3732.5,0.001]
[1760711984293,1.728,3733.2,3732.5,0.001]
[1760711984499,2.67849289,3733.5,3732.5,0.001]
[1760711984683,1.728,3733.4,3732.5,0.001]
[1760711984885,0.04669013,3733.3,3732.5,0.001]
[1760711985066,2.67866709,3733.2,3732.5,0.001]
[1760711985264,2.80499767,3732.6,3732.5,0.001]
[1760711985468,8.16459767,3732.6,3732.5,0.001]
[1760711985702,19.32158467,3732.6,3732.5,0.001]
[1760711985870,10.20066108,3732.6,3732.5,0.001]
[1760711986066,5.68605718,3732.6,3732.5,0.001]
[1760711986744,2.78195951,3732.6,3732.5,0.001]
[1760711987006,2.14835951,3732.6,3732.5,0.001]
[1760711987166,0.2128,3734.0,3732.5,0.001]
[1760711987517,2.67909767,3732.6,3732.5,0.001]
[1760711987670,0.1258,3732.9,3732.5,0.001]
[1760711987869,2.67909767,3732.6,3732.5,0.001]
[1760711988179,2.95958744,3732.6,3732.5,0.001]
[1760711988375,4.68758744,3732.6,3732.5,0.001]
[1760711988703,4.7342857,3732.6,3732.5,0.001]
[1760711990684,5.4671857,3732.6,3732.5,0.001]
[1760711991013,5.88749602,3732.6,3732.5,0.001]
[1760711991319,5.15459602,3732.6,3732.5,0.001]
[1760711991617,4.87410625,3732.6,3732.5,0.001]
[1760711992197,5.60700625,3732.6,3732.5,0.001]
[1760711992821,5.50770625,3732.6,3732.5,0.001]
[1760711993123,4.87410625,3732.6,3732.5,0.001]
[1760711993718,4.58739593,3732.6,3732.5,0.001]
[1760711993907,1.90829826,3732.6,3732.5,0.001]
[1760711994260,2.72579593,3732.6,3732.5,0.001]
[1760711994916,0.04669826,3732.6,3732.5,0.001]
[1760711995086,2.72579593,3732.6,3732.5,0.001]
[1760711995489,2.67909767,3732.6,3732.5,0.001]
[1760711995685,4.07583175,3732.6,3732.5,0.001]
[1760711996289,3.57583175,3732.6,3732.5,0.001]
[1760711996503,0.1336,3732.6,3732.5,0.001]
[1760711996702,0.4202852,3732.8,3732.5,0.001]
[1760711996887,2.67909767,3732.6,3732.5,0.001]
[1760711997092,2.67907305,3732.7,3732.5,0.001]
[1760711997424,2.67909767,3732.6,3732.5,0.001]
[1760711997626,3.42973198,3732.6,3732.5,0.001]
[1760711998327,2.67909767,3732.6,3732.5,0.001]
[1760711998494,0.6336,3733.4,3732.5,0.4455]
[1760711998828,1.77469714,3733.5,3732.5,0.4455]
[1760711998829,0.42026031,3733.2,3732.5,0.001]
[1760711998994,0.46695723,3733.2,3732.5,0.001]
[1760711999194,0.46695723,3733.2,3732.5,0.4455]
[1760711999396,0.04669692,3733.2,3733.1,0.2203]
[1760711999708,0.04669692,3733.2,3733.1,0.6648]
[1760712000106,0.04669692,3733.2,3733.1,0.2203]
[1760712000407,0.04669692,3733.2,3732.5,0.001]
[1760712000408,2.67909767,3732.6,3732.5,0.001]
[1760712000610,2.67903086,3732.7,3732.5,0.001]
[1760712000842,4.40645185,3733.5,3732.5,0.4455]
[1760712000996,15.39464596,3733.6,3732.5,0.4455]
[1760712000997,1.728,3732.9,3732.5,0.4455]
[1760712001197,2.72545854,3733.1,3732.5,0.001]
[1760712001402,0.04669381,3733.1,3732.5,0.001]
[1760712001793,2.67891613,3732.9,3732.5,0.001]
[1760712001908,4.40709767,3732.6,3732.5,0.001]
[1760712002119,1.728,3732.6,3732.5,0.001]
[1760712002454,2.67858931,3733.4,3732.6,2.67909767]
[1760712002750,15.39464596,3733.8,3732.7,0.4299]
[1760712002751,0.04669567,3733.0,3732.7,0.4299]
[1760712002908,0.04669567,3733.0,3732.8,0.4299]
[1760712003506,0.002,3733.9,3732.9,0.45668882]
[1760712003822,0.002,3733.9,3732.9,0.4299]
[1760712004024,0.002,3733.9,3733.0,0.0267881]
[1760712004221,0.002,3733.9,3733.1,0.6655]
[1760712004424,0.002,3733.9,3732.5,0.001]
[1760712004425,0.1145,3733.8,3732.5,0.001]
[1760712004633,0.1164,3733.9,3732.6,0.4299]
[1760712004933,0.1164,3733.9,3732.5,0.001]
[1760712004934,2.67907269,3732.7,3732.5,0.001]
[1760712005110,1.728,3733.6,3732.5,0.001]
[1760712005310,2.67845185,3733.5,3732.6,0.4299]
[1760712005518,2.67909767,3732.6,3732.5,0.001]
[1760712006723,2.81269767,3732.6,3732.5,0.001]
[1760712007056,4.99829465,3732.6,3732.5,0.001]
[1760712007225,10.48932765,3732.6,3732.5,0.001]
[1760712007605,10.48932765,3732.6,3732.1,0.001]
[1760712007606,22.34059281,3732.2,3732.1,0.001]
[1760712007823,37.40847277,3732.2,3732.1,0.001]
[1760712008033,20.53563077,3732.2,3732.1,0.001]
[1760712008223,27.63246319,3732.2,3732.1,0.001]
[1760712008424,27.53246319,3732.2,3732.1,0.001]
[1760712008603,27.63246319,3732.2,3732.1,0.001]
[1760712008802,25.37958619,3732.2,3732.1,0.001]
[1760712009125,34.38470919,3732.2,3732.1,0.001]
[1760712009353,25.28214169,3732.2,3732.1,0.001]
[1760712009523,4.87449892,3732.2,3732.1,0.001]
[1760712009968,4.45409731,3732.2,3732.1,0.001]
[1760712010455,30.42804527,3732.2,3732.1,0.001]
[1760712010659,23.45971127,3732.2,3732.1,0.001]
[1760712011043,23.55971127,3732.2,3732.1,0.001]
[1760712011554,4.45409731,3732.2,3732.1,0.001]
[1760712011945,2.72609731,3732.2,3732.1,0.001]
[1760712012844,3.35969731,3732.2,3732.1,0.001]
[1760712013158,0.0467125,3732.2,3732.1,0.6665]
[1760712013671,3.09908704,3733.1,3732.1,0.6665]
[1760712013875,0.04669787,3733.2,3732.2,0.4299]
[1760712014074,0.42021421,3733.8,3733.1,0.2356]
[1760712014221,0.42021421,3733.8,3733.2,0.4299]
[1760712014428,0.002,3733.9,3733.8,2.67823664]
[1760712014662,0.002,3734.7,3734.2,2.67794976]
[1760712014977,0.002,3734.7,3734.1,0.2356]
[1760712015184,0.34000819,3734.3,3733.4,0.2356]
[1760712015476,0.002,3734.3,3732.8,2.67891753]
[1760712015767,0.002,3734.3,3732.9,0.4299]
[1760712015768,2.67844446,3733.6,3732.9,0.4299]
[1760712015924,2.67844446,3733.6,3731.7,0.001]
[1760712015925,2.67794976,3734.2,3731.7,0.001]
[1760712016121,8.21756,3733.8,3732.0,0.4299]
[1760712016336,8.21756,3733.8,3731.7,0.001]
[1760712016337,2.67882483,3733.0,3732.2,0.4299]
[1760712016554,0.42016008,3734.0,3732.2,0.4299]
[1760712016555,1.728,3733.7,3732.2,0.4299]
[1760712016763,0.42016008,3734.0,3732.3,0.02679313]
[1760712017059,15.54284596,3734.8,3731.7,2.6806901]
[1760712017060,0.1138,3733.9,3732.6,2.67908873]
[1760712017229,2.67854035,3733.4,3733.1,0.1336]
[1760712017424,0.1336,3733.8,3733.2,0.2356]
[1760712017638,3.09822116,3734.1,3733.2,0.26238667]
[1760712017860,0.002,3734.3,3733.3,0.4299]
[1760712018083,0.002,3734.3,3734.2,0.2356]
[1760712018448,2.67987804,3734.3,3734.2,0.1336]
[1760712018655,2.67987804,3734.3,3731.9,2.67958307]
[1760712018656,0.2699878,3734.3,3733.4,0.2356]
[1760712018851,2.6780044,3734.2,3733.4,2.91406618]
[1760712019029,2.67811077,3734.0,3733.4,0.2356]
[1760712019224,0.002,3734.3,3733.4,0.2356]
[1760712019437,2.67794976,3734.2,3733.4,0.2356]
[1760712019766,2.67818261,3733.9,3733.4,0.2356]
[1760712019963,0.002,3734.3,3733.4,0.2356]
[1760712019964,2.67845185,3733.5,3733.4,0.2356]
[1760712020129,0.26784518,3733.5,3732.0,0.4299]
[1760712020328,1.728,3733.8,3732.6,2.67904597]
[1760712020535,2.67864882,3733.3,3732.6,0.4299]
[1760712020758,2.67924428,3732.4,3732.1,0.6665]
[1760712020928,0.04668965,3733.6,3732.2,0.4299]
[1760712020929,0.42018767,3733.5,3732.2,0.4299]
[1760712021336,2.67848406,3733.5,3732.2,0.45669384]
[1760712021561,0.04668965,3733.6,3732.3,0.3372822]
[1760712021831,0.04668965,3733.6,3732.1,0.001]
[1760712021832,2.67899416,3732.8,3732.1,0.001]
[1760712022056,1.728,3733.1,3732.1,0.001]
[1760712022242,2.67938481,3732.2,3732.1,0.001]
[1760712022429,1.728,3732.9,3732.2,0.2284]
[1760712022634,0.50404106,3732.9,3732.1,0.001]
[1760712022867,2.67938481,3732.2,3732.1,0.001]
[1760712023373,3.41198481,3732.2,3732.1,0.001]
[1760712023531,5.13998481,3732.2,3732.1,0.001]
[1760712023732,5.27249821,3732.2,3732.1,0.001]
[1760712024169,16.59463349,3732.2,3732.1,0.001]
[1760712024392,16.59383349,3732.2,3732.1,0.001]
[1760712024590,13.59565349,3732.2,3732.1,0.001]
[1760712025094,14.525072,3731.8,3731.7,0.001]
[1760712025292,29.38868832,3731.8,3731.7,0.001]
[1760712025499,29.38868832,3731.8,3731.3,0.001]
[1760712025500,2.67995926,3731.4,3731.3,0.001]
[1760712025697,1.728,3730.3,3729.0,0.4718]
[1760712025996,2.68089327,3730.1,3729.0,0.4718]
[1760712026294,16.15937732,3729.8,3728.0,0.2284]
[1760712026502,16.28367732,3728.1,3726.4,0.4718]
[1760712026661,0.1167,3729.0,3726.9,0.49863195]
[1760712026662,1.728,3728.6,3726.9,0.49863195]
[1760712026992,2.72904992,3728.2,3727.0,2.70991371]
[1760712027298,0.04675579,3728.2,3727.1,0.7002]
[1760712027598,0.04675579,3728.2,3726.5,0.4718]
[1760712027599,0.6336,3727.7,3726.5,0.4718]
[1760712028005,16.15937732,3727.8,3726.5,0.4718]
[1760712028206,2.3616,3728.8,3727.6,0.2284]
[1760712028405,0.04676053,3727.9,3727.3,0.2284]
[1760712028606,0.1336,3727.3,3726.7,0.1336]
[1760712028901,2.68319573,3726.9,3726.7,0.1336]
[1760712029109,2.68319573,3726.9,3725.7,2.6840516]
[1760712029110,0.39411957,3726.9,3725.5,0.4718]
[1760712029277,2.68318799,3727.0,3725.5,0.4718]
[1760712029597,1.728,3726.7,3725.6,0.02684131]
[1760712029797,1.728,3726.7,3725.3,0.7002]
[1760712029798,2.6831291,3727.0,3726.0,2.68379455]
[1760712029998,2.68249118,3727.9,3726.0,2.68379455]
[1760712029999,0.0992,3729.8,3726.9,0.2284]
[1760712030163,0.42089835,3727.5,3727.4,2.68283522]
[1760712030371,0.04676604,3728.9,3726.9,0.2284]
[1760712030372,16.15937732,3728.1,3726.9,0.2284]
[1760712030619,0.1163,3728.4,3726.7,0.4718]
[1760712030620,0.4208201,3727.7,3726.7,0.7002]
[1760712030822,2.68226454,3728.2,3726.9,2.68319514]
[1760712031131,2.00785645,3728.1,3727.0,2.68310067]
[1760712031285,0.42077004,3728.2,3726.7,0.7002]
[1760712031488,0.04675693,3727.9,3727.3,2.68283978]
[1760712031719,18.62137732,3728.5,3727.1,0.2284]
[1760712031918,0.42079656,3728.7,3726.8,0.4718]
[1760712031919,2.68281021,3727.5,3726.8,0.4718]
[1760712032244,2.68255681,3727.8,3727.0,2.68312106]
[1760712032419,2.7291671,3728.0,3725.9,0.2284]
[1760712032420,19.38317001,3727.7,3726.4,0.4718]
[1760712032725,2.68304654,3727.2,3726.4,0.4718]
[1760712032926,0.42078646,3728.1,3726.4,0.4718]
[1760712033129,0.0467591,3727.8,3727.3,2.68287766]
[1760712033292,0.0467591,3727.8,3727.1,0.2284]
[1760712033493,0.1154,3727.9,3726.2,0.2284]
[1760712033692,0.1154,3727.9,3725.9,0.2284]
[1760712033693,0.6336,3727.6,3725.9,0.7002]
[1760712033996,2.68357061,3726.4,3725.3,0.7002]
[1760712034190,0.1447,3726.8,3725.3,0.7002]
[1760712034504,0.1447,3726.8,3725.3,0.2284]
[1760712034701,2.68369051,3726.3,3725.3,0.2284]
[1760712034902,0.1447,3726.8,3725.3,0.2284]
[1760712034903,2.68355971,3726.4,3725.3,0.2284]
[1760712035106,0.04677768,3726.5,3725.3,0.2284]
[1760712035332,16.206155,3726.5,3725.0,0.2284]
[1760712035520,16.15937732,3726.0,3724.6,0.2284]
[1760712036028,16.7166486,3726.5,3725.2,2.68437634]
[1760712036330,16.7166486,3726.5,3724.0,0.2284]
[1760712036331,0.1456,3725.3,3724.0,0.2284]
[1760712036532,1.63049773,3725.2,3724.2,2.68509389]
[1760712036703,0.1456,3725.3,3724.0,0.2284]
[1760712036903,2.68478593,3724.7,3724.0,0.2284]
[1760712037240,0.27978305,3727.8,3724.1,1.3]
[1760712037394,0.1487,3729.0,3726.4,16.15937732]
[1760712037731,0.1487,3729.0,3726.5,2.31613773]
[1760712037732,2.68195083,3728.7,3726.5,2.31613773]
[1760712037894,2.68204371,3728.5,3726.5,0.7002]
[1760712038092,2.68290398,3727.4,3726.5,0.7002]
[1760712038316,0.1444,3727.8,3726.5,0.7002]
[1760712038514,0.1444,3727.8,3726.1,0.2284]
[1760712038716,2.68297471,3727.3,3726.1,0.2284]
[1760712038917,2.68261977,3727.7,3726.1,0.2284]
[1760712039117,0.1336,3727.9,3727.2,0.1336]
[1760712039347,0.1336,3727.9,3727.2,2.81650801]
[1760712039348,0.04676611,3727.6,3727.2,2.81650801]
[1760712039529,0.04676611,3727.6,3727.2,0.1336]
[1760712040130,2.68276324,3727.5,3726.2,2.68368915]
[1760712040306,0.1336,3727.3,3726.6,0.1336]
[1760712040634,2.68356188,3726.4,3725.5,3.15600134]
[1760712040931,0.2135,3727.2,3726.0,0.1336]
[1760712040932,0.1336,3726.7,3726.0,0.1336]
[1760712041134,0.1336,3726.9,3726.2,0.1336]
[1760712041322,1e-08,3726.9,3726.8,2.68326714]
[1760712041523,0.1439,3730.0,3727.0,1.728]
[1760712041726,0.04675837,3729.9,3727.6,1.728]
[1760712042049,0.04675837,3729.9,3729.8,2.9095089]
[1760712042213,2.68046211,3730.7,3728.2,2.68225953]
[1760712042415,0.04673153,3730.5,3728.5,1.728]
[1760712042610,0.04673153,3730.5,3730.2,2.68080807]
[1760712042918,0.04673153,3730.5,3730.1,0.2284]
[1760712043141,0.04673153,3730.5,3729.7,0.4718]
[1760712043441,0.04673153,3730.5,3729.0,0.7002]
[1760712043607,2.68092142,3730.1,3729.2,2.6814699]
[1760712043804,0.04673153,3730.5,3729.0,0.7002]
[1760712044523,13.41945,3730.4,3728.4,0.49862115]
[1760712044823,13.41945,3730.4,3728.4,0.4718]
[1760712044824,5.14307336,3730.3,3728.4,0.4718]
[1760712045025,5.14307336,3730.3,3727.9,2.91081674]
[1760712045026,1.728,3730.0,3728.2,0.2284]
[1760712045229,0.56827751,3729.9,3728.3,0.49862187]
[1760712045462,2.68125054,3729.7,3728.7,2.68187033]
[1760712045742,0.28425952,3730.5,3728.7,2.68187033]
[1760712045743,0.28425952,3730.5,3728.7,0.4718]
[1760712045942,6.157632,3730.6,3728.7,0.4718]
[1760712046104,0.04673893,3730.1,3728.8,2.68182793]
[1760712046428,0.04673893,3730.1,3729.0,2.68162875]
[1760712046429,2.68110989,3729.8,3729.0,2.68162875]
[1760712046740,0.1473,3729.9,3728.8,2.6817609]
[1760712046941,2.68135816,3729.5,3728.4,0.4718]
[1760712047139,0.1473,3729.9,3728.6,2.68192481]
[1760712047342,2.68154498,3729.2,3728.4,3.15386956]
[1760712047538,0.43012042,3729.9,3728.4,0.4718]
[1760712047737,2.68140447,3729.4,3728.4,0.4718]
[1760712047908,2.68147353,3729.3,3728.5,2.68204371]
[1760712048104,0.1473,3729.9,3728.6,2.68191432]
[1760712048105,2.68059819,3729.4,3728.6,2.68191432]
[1760712048343,2.68147897,3729.3,3728.5,2.68201789]
[1760712048513,2.68147897,3729.3,3728.4,0.4718]
[1760712048709,2.681768,3728.9,3728.2,0.2284]
[1760712048928,2.68161218,3729.1,3728.3,2.68218118]
[1760712049122,0.04674162,3729.4,3728.2,0.2284]
[1760712049620,2.68177319,3728.9,3728.2,0.2284]
[1760712049826,2.68165928,3729.1,3728.2,0.2284]
[1760712050023,2.68175074,3729.0,3728.2,0.2284]
[1760712050322,2.68177092,3728.9,3728.2,0.2284]
[1760712050505,0.04674527,3729.0,3728.2,0.2284]
[1760712050706,0.04674527,3729.0,3727.9,0.2284]
[1760712050910,0.31958055,3729.0,3727.9,0.2284]
[1760712051142,2.68188578,3728.8,3728.0,2.68236722]
[1760712051307,2.7284475,3729.0,3728.1,2.91072846]
[1760712051308,2.68177088,3728.9,3728.1,2.91072846]
[1760712051512,2.68177088,3728.9,3728.6,0.1336]
[1760712051748,2.68185053,3728.8,3728.6,0.1336]
[1760712051912,2.68189985,3728.7,3728.6,0.1336]
[1760712052747,0.04674527,3729.0,3728.6,0.1336]
[1760712052748,2.68184992,3728.8,3728.6,0.1336]
[1760712053041,0.04674527,3729.0,3728.6,0.1336]
[1760712053231,0.04674527,3729.0,3728.6,0.567]
[1760712053422,0.04674527,3729.0,3728.6,0.1336]
[1760712053619,0.002,3728.9,3728.6,0.1336]
[1760712053849,2.68376255,3728.9,3728.6,0.1336]
[1760712054046,2.68189985,3728.7,3728.6,0.1336]
[1760712054251,2.82799985,3728.7,3728.6,0.1336]
[1760712054421,2.68189985,3728.7,3728.6,0.1336]
[1760712054942,0.002,3728.9,3728.6,0.567]
[1760712055143,2.68382524,3728.9,3728.6,0.1336]
[1760712055346,0.002,3728.9,3728.6,0.1336]
[1760712055646,2.68189985,3728.7,3728.6,0.1336]
[1760712056845,0.002,3728.9,3728.6,0.1336]
[1760712057012,2.68189985,3728.7,3728.6,0.1336]
[1760712057212,0.002,3728.9,3728.6,0.1336]
[1760712057408,0.1452,3728.7,3726.0,0.6336]
[1760712057614,3.31593148,3728.1,3726.2,0.6546]
[1760712057813,2.68274887,3727.6,3726.2,0.6546]
[1760712058048,3.39542125,3728.1,3726.2,0.6546]
[1760712058256,2.68277234,3727.5,3726.2,0.6546]
[1760712058550,12.0887193,3727.7,3726.2,0.6546]
[1760712058751,0.34953213,3728.0,3726.2,0.6546]
[1760712058956,0.34953213,3728.0,3725.9,0.2284]
[1760712058957,2.68348316,3726.5,3725.9,0.2284]
[1760712059265,0.1152,3726.9,3725.9,0.2284]
[1760712059549,2.68349744,3726.5,3725.9,0.2284]
[1760712059850,0.16197308,3726.9,3725.9,0.2284]
[1760712060057,2.68367829,3726.3,3725.9,0.2284]
[1760712060374,2.68333914,3726.7,3725.5,0.2212]
[1760712060579,0.1152,3726.9,3725.5,0.6546]
[1760712060856,0.04677723,3726.9,3726.8,0.2212]
[1760712061222,0.04677723,3726.9,3726.4,0.2212]
[1760712061421,0.2141,3728.8,3726.5,0.02683483]
[1760712061652,0.2141,3728.8,3726.4,0.2212]
[1760712061653,0.04676483,3727.8,3726.7,2.68333914]
[1760712061957,0.002,3728.9,3728.1,2.68229099]
[1760712062157,0.002,3728.9,3727.7,0.2212]
[1760712062158,0.04675517,3728.6,3727.7,0.2212]
[1760712062321,0.04675517,3728.6,3727.9,2.68247538]
[1760712062656,0.002,3728.9,3727.7,0.2212]
[1760712062856,0.002,3728.9,3727.4,0.2246]
[1760712063155,2.68228492,3728.2,3727.1,0.2246]
[1760712063353,0.2442,3728.8,3727.1,0.6919]
[1760712063576,2.68252513,3727.9,3727.1,0.6919]
[1760712063861,0.2442,3728.8,3727.1,0.6919]
[1760712064019,0.04675857,3728.3,3726.5,0.4673]
[1760712064222,2.68300378,3727.2,3726.4,0.2212]
[1760712064433,2.68317628,3727.0,3726.4,0.2212]
[1760712064638,0.1161,3727.6,3726.4,0.2212]
[1760712064837,2.68314325,3727.0,3726.4,0.2212]
[1760712065038,2.68275278,3727.6,3726.4,0.6885]
[1760712065334,2.68284508,3727.4,3726.4,0.6885]
[1760712065649,2.68254734,3727.8,3726.6,2.68340927]
[1760712065855,0.59019704,3727.7,3726.3,0.4673]
[1760712066032,3.21944791,3727.9,3726.5,2.68341869]
[1760712066231,0.53696558,3727.9,3726.5,2.68346749]
[1760712066433,2.68296325,3727.3,3726.3,0.4673]
[1760712066630,0.53696558,3727.9,3726.3,0.4673]
[1760712066957,3.21946171,3727.9,3726.5,2.68348146]
[1760712067145,2.68298243,3727.2,3726.3,0.4673]
[1760712067345,0.86881175,3727.9,3726.3,0.4673]
[1760712067559,2.68269127,3727.6,3727.1,0.1336]
[1760712067764,2.68284868,3727.4,3727.1,0.1336]
[1760712067931,0.42086558,3727.9,3727.2,0.6919]
[1760712068133,0.42086558,3727.9,3727.8,2.81614734]
[1760712068332,0.04675866,3728.3,3727.8,0.6009]
[1760712068528,16.45132758,3729.8,3727.2,0.2246]
[1760712068529,0.1356,3729.3,3728.2,0.3582]
[1760712068839,0.04675035,3729.2,3728.2,0.3582]
[1760712069053,2.6816156,3729.1,3728.7,0.1336]
[1760712069253,0.04675035,3729.2,3727.5,2.68272239]
[1760712069254,0.1467,3728.9,3728.3,2.68212743]
[1760712069458,0.1467,3728.9,3727.6,2.68269127]
[1760712069459,2.68195336,3728.7,3728.4,0.1336]
[1760712069765,2.68195336,3728.7,3727.2,0.2246]
[1760712069766,0.0995,3728.6,3727.2,0.2246]
[1760712070067,2.68295724,3727.3,3726.3,0.4673]
[1760712070371,2.68269127,3727.6,3725.9,2.68391034]
[1760712070554,2.68354963,3726.5,3725.7,2.68404701]
[1760712070735,2.68360744,3726.4,3725.5,0.2212]
[1760712071076,2.68356369,3726.4,3725.7,2.68403594]
[1760712071244,2.68350764,3726.5,3726.3,0.001]
[1760712071452,0.04677021,3727.0,3726.4,0.6919]
[1760712071772,0.42088278,3728.3,3726.6,2.68341115]
[1760712071971,0.04595889,3728.3,3726.7,17.01604218]
[1760712072182,0.04595889,3728.3,3727.7,2.68260664]
[1760712072376,2.72814956,3728.3,3727.4,2.68282858]
[1760712072537,0.04595889,3728.3,3727.1,0.2246]
[1760712072873,0.04595889,3728.3,3727.6,2.68263949]
[1760712073079,0.04595889,3728.3,3727.4,2.68276466]
[1760712073369,0.31876175,3728.3,3727.2,0.4673]
[1760712073669,0.31876175,3728.3,3725.3,3.31789144]
[1760712073670,2.68355517,3726.4,3725.2,0.2246]
[1760712073835,2.68355517,3726.4,3724.5,0.2246]
[1760712073836,8.35405517,3726.4,3724.5,0.2246]
[1760712074034,9.97940617,3726.4,3724.5,0.2246]
[1760712074358,10.65978645,3726.4,3724.2,0.001]
[1760712074671,11.99411149,3726.4,3724.2,0.001]
[1760712074971,22.41768249,3726.4,3724.2,0.001]
[1760712075168,22.05836321,3726.4,3724.2,0.001]
[1760712075469,20.33080452,3726.4,3724.2,0.001]
[1760712075669,2.68441962,3725.2,3724.2,0.001]
[1760712075837,15.45060658,3725.2,3725.1,1e-08]
[1760712076038,30.89078398,3724.7,3724.2,0.001]
[1760712076262,2.68550098,3723.7,3723.6,1.00295285]
[1760712076761,0.6336,3723.3,3721.3,0.2246]
[1760712076960,1.728,3723.6,3721.5,0.4673]
[1760712076961,10.152559,3723.0,3721.5,0.4673]
[1760712077144,10.152559,3723.0,3721.3,0.2246]
[1760712077145,2.3616,3722.9,3721.3,0.2246]
[1760712077337,1.728,3722.7,3721.3,0.2246]
[1760712077536,1.28098079,3723.5,3721.9,0.4673]
[1760712077747,1.728,3723.5,3721.9,0.4673]
[1760712077971,0.42137201,3722.6,3721.9,0.4673]
[1760712078174,1.728,3723.5,3721.3,0.2246]
[1760712078175,1.728,3723.3,3721.3,0.2246]
[1760712078377,0.42139402,3723.0,3721.8,0.4703]
[1760712078868,0.42139402,3723.0,3722.0,2.68672756]
[1760712079041,0.42139402,3723.0,3722.1,0.2246]
[1760712079239,0.42139402,3723.0,3722.1,2.91124764]
[1760712079438,0.04682481,3722.8,3721.8,0.003]
[1760712079639,0.1336,3722.7,3722.1,0.1336]
[1760712079949,0.04682481,3722.8,3722.7,2.81982236]
[1760712080138,0.42133398,3724.4,3722.7,1.01791476]
[1760712080469,0.04681528,3724.1,3722.8,0.4673]
[1760712080710,0.1468,3724.8,3722.8,0.4673]
[1760712080859,0.1468,3724.8,3722.8,3.1534258]
[1760712080860,0.04680365,3724.7,3722.8,3.1534258]
[1760712081058,2.68485206,3724.6,3723.1,2.68591376]
[1760712081289,0.04680365,3724.7,3724.0,2.68521921]
[1760712081464,0.04680365,3724.7,3724.1,0.02685212]
[1760712081666,0.04680365,3724.7,3723.9,0.2246]
[1760712081667,0.04680365,3724.7,3724.2,0.4735]
[1760712081871,2.68413586,3725.6,3724.7,2.68477307]
[1760712082080,2.68413586,3725.6,3724.3,0.4735]
[1760712082081,0.04678731,3725.2,3724.3,0.4735]
[1760712082394,0.04678731,3725.2,3723.9,0.2246]
[1760712082698,2.68482078,3724.7,3723.9,0.2246]
[1760712082860,0.04678731,3725.2,3724.0,0.4735]
[1760712083268,0.04678731,3725.2,3724.1,2.68521253]
[1760712083489,0.04678731,3725.2,3724.1,0.33833125]
[1760712083688,2.68455072,3725.1,3724.0,3.15877414]
[1760712083998,2.68469731,3724.9,3724.0,3.15871455]
[1760712084181,0.04678731,3725.2,3724.0,0.4735]
[1760712084498,2.68449169,3725.1,3724.0,0.4735]
[1760712084815,0.04678731,3725.2,3724.1,0.02685212]
[1760712084974,0.04678731,3725.2,3724.0,0.4735]
[1760712084975,0.42110158,3726.7,3724.2,0.7076]
[1760712085163,0.04678996,3726.1,3724.3,0.50035068]
[1760712085363,0.42110158,3726.7,3724.3,0.4735]
[1760712085577,17.755679,3726.4,3724.2,0.2341]
[1760712085895,5.04546057,3726.0,3724.2,0.2341]
[1760712086197,0.6336,3725.8,3724.2,0.2341]
[1760712086363,2.78269289,3725.8,3724.2,0.2341]